bitfinex/quotes_BTCUSD_20240819
["timestamp","ask_amount","ask_price","bid_price","bid_amount"]
[1724054256293,2.34291424,58641.0,58640.0,0.00049453]
[1724054256692,2.35691424,58641.0,58640.0,0.00049453]
[1724054256891,2.35691041,58641.0,58640.0,0.00049453]
[1724054257161,2.3569066,58641.0,58640.0,0.00049453]
[1724054257390,2.19084853,58641.0,58640.0,0.00049453]
[1724054257596,2.19084853,58641.0,58631.0,0.0002]
[1724054257597,0.982019,58632.0,58631.0,0.0002]
[1724054257799,1.8494289,58632.0,58631.0,0.0002]
[1724054258012,1.9494289,58632.0,58631.0,0.0002]
[1724054259011,1.9634289,58632.0,58631.0,0.0002]
[1724054259218,2.14935839,58632.0,58631.0,0.0002]
[1724054259435,1.9634289,58632.0,58631.0,0.0002]
[1724054259859,1.9494289,58632.0,58631.0,0.0002]
[1724054260060,2.00879357,58632.0,58631.0,0.0002]
[1724054260289,2.13532094,58632.0,58631.0,0.0002]
[1724054260570,2.2601953,58632.0,58631.0,0.0002]
[1724054260893,2.15975019,58632.0,58631.0,0.0002]
[1724054261281,2.07504629,58632.0,58631.0,0.0002]
[1724054261427,2.08904629,58632.0,58631.0,0.0002]
[1724054263308,1.86862888,58632.0,58631.0,0.0002]
[1724054264414,1.84333177,58632.0,58631.0,0.0002]
[1724054265258,1.78235362,58632.0,58631.0,0.0002]
[1724054266654,1.66555362,58632.0,58631.0,0.0002]
[1724054266852,1.04169962,58632.0,58631.0,0.0002]
[1724054267092,0.99410797,58632.0,58631.0,0.0002]
[1724054267280,0.99410797,58632.0,58631.0,0.0011042]
[1724054267806,1.23288497,58632.0,58631.0,0.0011042]
[1724054268006,1.21888497,58632.0,58631.0,0.0011042]
[1724054268333,1.22488497,58632.0,58631.0,0.0011042]
[1724054268533,1.21088497,58632.0,58631.0,0.0011042]
[1724054268864,1.21388497,58632.0,58631.0,0.0011042]
[1724054269064,1.20888497,58632.0,58631.0,0.0011042]
[1724054269467,0.73833097,58632.0,58631.0,0.0011042]
[1724054270233,0.52050741,58632.0,58631.0,0.8553562]
[1724054270554,0.52050741,58632.0,58631.0,0.7385562]
[1724054271482,0.51650741,58632.0,58631.0,0.7385562]
[1724054271634,0.50950741,58632.0,58631.0,0.7395562]
[1724054272243,0.51050741,58632.0,58631.0,0.5007752]
[1724054274740,0.51050741,58632.0,58631.0,0.1426042]
[1724054275148,0.52705505,58632.0,58631.0,0.2619942]
[1724054275660,0.51050741,58632.0,58631.0,0.2619942]
[1724054276205,0.52705497,58632.0,58631.0,0.2619942]
[1724054277031,0.51050741,58632.0,58631.0,0.2619942]
[1724054277207,0.51050741,58632.0,58631.0,0.6175752]
[1724054278614,0.51050741,58632.0,58631.0,0.7395562]
[1724054279309,0.52705618,58632.0,58631.0,0.7395562]
[1724054280202,0.52787818,58632.0,58631.0,0.7395562]
[1724054280650,0.51132941,58632.0,58631.0,0.7395562]
[1724054284693,0.51132941,58632.0,58631.0,0.0021042]
[1724054284940,0.52788267,58632.0,58631.0,0.1214942]
[1724054285344,0.64727067,58632.0,58631.0,0.0021042]
[1724054285511,0.88604767,58632.0,58631.0,0.0021042]
[1724054285708,0.64727067,58632.0,58631.0,0.0021042]
[1724054286074,0.52788267,58632.0,58631.0,0.0774042]
[1724054287023,0.52788267,58632.0,58631.0,0.1967942]
[1724054287245,0.52788267,58632.0,58631.0,0.0774042]
[1724054287864,0.51132941,58632.0,58631.0,0.9753372]
[1724054288758,0.51132941,58632.0,58631.0,0.7365562]
[1724054288966,0.51132941,58632.0,58631.0,0.5990562]
[1724054289176,0.51132941,58632.0,58631.0,0.3602752]
[1724054290606,0.52788384,58632.0,58631.0,0.3602752]
[1724054294657,0.52788384,58632.0,58631.0,0.1214942]
[1724054295512,0.52788384,58632.0,58631.0,0.1726622]
[1724054295871,0.52788384,58632.0,58631.0,0.0021042]
[1724054296871,0.69843884,58632.0,58631.0,0.0021042]
[1724054297488,1.46175884,58632.0,58631.0,0.0021042]
[1724054297715,1.55347369,58632.0,58631.0,0.0021042]
[1724054299630,1.89458369,58632.0,58631.0,0.0021042]
[1724054299807,1.94533497,58632.0,58631.0,0.0021042]
[1724054300045,1.97071061,58632.0,58631.0,0.0021042]
[1724054300263,1.94533488,58632.0,58631.0,0.0021042]
[1724054300465,1.91582003,58632.0,58631.0,0.0021042]
[1724054300644,2.00474683,58632.0,58631.0,0.0021042]
[1724054301054,2.0160656,58632.0,58631.0,0.0021042]
[1724054301267,2.08750637,58632.0,58631.0,0.0021042]
[1724054301452,2.31614411,58632.0,58631.0,0.0021042]
[1724054303532,2.31557317,58632.0,58631.0,0.0021042]
[1724054303992,2.19877199,58632.0,58631.0,0.0021042]
[1724054304144,2.25819183,58632.0,58631.0,0.0021042]
[1724054304569,1.89458026,58632.0,58631.0,0.0021042]
[1724054304772,2.19940054,58632.0,58631.0,0.0021042]
[1724054304975,2.2588209,58632.0,58631.0,0.0021042]
[1724054306203,2.19940054,58632.0,58631.0,0.0021042]
[1724054307140,2.09790288,58632.0,58631.0,0.0021042]
[1724054307550,2.28419531,58632.0,58631.0,0.0021042]
[1724054308158,2.22441621,58632.0,58631.0,0.0021042]
[1724054309992,2.68232621,58632.0,58631.0,0.0021042]
[1724054310260,2.55540259,58632.0,58631.0,0.0021042]
[1724054310662,2.21429259,58632.0,58631.0,0.0021042]
[1724054310867,2.21429259,58632.0,58631.0,0.0011042]
[1724054311730,2.31429259,58632.0,58631.0,0.0011042]
[1724054311952,2.31329259,58632.0,58631.0,0.0011042]
[1724054312107,2.66740259,58632.0,58631.0,0.0011042]
[1724054312308,2.67440259,58632.0,58631.0,0.0011042]
[1724054312513,2.67440204,58632.0,58631.0,0.0011042]
[1724054312730,2.67259354,58632.0,58631.0,0.0011042]
[1724054312927,2.65259354,58632.0,58631.0,0.0011042]
[1724054313084,2.66359367,58632.0,58631.0,0.0011042]
[1724054313283,2.67759367,58632.0,58631.0,0.0011042]
[1724054313526,2.66359367,58632.0,58631.0,0.0011042]
[1724054313705,2.31148367,58632.0,58631.0,0.0011042]
[1724054314266,2.66559367,58632.0,58631.0,0.0011042]
[1724054314445,2.33848367,58632.0,58631.0,0.0011042]
[1724054314650,2.67959367,58632.0,58631.0,0.0011042]
[1724054315810,2.22168367,58632.0,58631.0,0.0011042]
[1724054316740,2.73434821,58632.0,58631.0,0.0011042]
[1724054317371,2.56279367,58632.0,58631.0,0.0011042]
[1724054320676,2.56279324,58632.0,58631.0,0.0011042]
[1724054324306,2.22168324,58632.0,58631.0,0.0011042]
[1724054324732,2.17561824,58632.0,58631.0,0.0011042]
[1724054324935,2.22168439,58632.0,58631.0,0.0011042]
[1724054325373,2.2216851,58632.0,58631.0,0.0011042]
[1724054326282,2.02058127,58632.0,58631.0,0.0011042]
[1724054326456,2.22180844,58632.0,58631.0,0.0011042]
[1724054329061,2.17574158,58632.0,58631.0,0.0011042]
[1724054329262,2.22184055,58632.0,58631.0,0.0011042]
[1724054330711,2.15964055,58632.0,58631.0,0.0011042]
[1724054330909,2.15991868,58632.0,58631.0,0.0011042]
[1724054331112,2.07881868,58632.0,58631.0,0.0011042]
[1724054331315,2.12973751,58632.0,58631.0,0.0011042]
[1724054331516,2.12961938,58632.0,58631.0,0.0011042]
[1724054332793,2.07870055,58632.0,58631.0,0.0011042]
[1724054332995,2.12962583,58632.0,58631.0,0.0011042]
[1724054334347,1.92812053,58632.0,58631.0,0.0011042]
[1724054335489,1.92768879,58632.0,58631.0,0.0011042]
[1724054336446,2.1295524,58632.0,58631.0,0.0011042]
[1724054337333,2.2688524,58632.0,58631.0,0.0011042]
[1724054337459,2.26885287,58632.0,58631.0,0.0011042]
[1724054337661,2.06698926,58632.0,58631.0,0.0011042]
[1724054337867,2.02088982,58632.0,58631.0,0.0011042]
[1724054338063,2.06698904,58632.0,58631.0,0.0011042]
[1724054339375,1.92768904,58632.0,58631.0,0.0011042]
[1724054339590,1.92768904,58632.0,58631.0,0.1396042]
[1724054340363,0.73380404,58632.0,58631.0,0.1396042]
[1724054340487,0.90435904,58632.0,58631.0,0.1396042]
[1724054340671,1.24546904,58632.0,58631.0,0.1396042]
[1724054340877,1.58658245,58632.0,58631.0,0.1396042]
[1724054341121,1.64605071,58632.0,58631.0,0.1396042]
[1724054341323,1.23247245,58632.0,58631.0,0.1396042]
[1724054341901,1.23747245,58632.0,58631.0,0.1396042]
[1724054342101,1.22347245,58632.0,58631.0,0.1396042]
[1724054342321,1.21847245,58632.0,58631.0,0.1396042]
[1724054342653,1.28594071,58632.0,58631.0,0.1396042]
[1724054343448,1.27794071,58632.0,58631.0,0.1396042]
[1724054343676,1.28494071,58632.0,58631.0,0.1396042]
[1724054343802,1.23801543,58632.0,58631.0,0.1396042]
[1724054344014,1.23801543,58632.0,58631.0,0.0011042]
[1724054344224,1.17854717,58632.0,58631.0,0.0011042]
[1724054344420,1.519656,58632.0,58631.0,0.0011042]
[1724054344622,1.57912257,58632.0,58631.0,0.0011042]
[1724054344928,1.519656,58632.0,58631.0,0.0011042]
[1724054345310,1.5791099,58632.0,58631.0,0.0011042]
[1724054345424,1.519656,58632.0,58631.0,0.0011042]
[1724054348065,1.860766,58632.0,58631.0,0.0011042]
[1724054348269,1.519656,58632.0,58631.0,0.0011042]
[1724054349112,1.51964434,58632.0,58631.0,0.0011042]
[1724054350285,1.57057216,58632.0,58631.0,0.0011042]
[1724054350487,1.91168216,58632.0,58631.0,0.0011042]
[1724054350683,1.57057216,58632.0,58631.0,0.0011042]
[1724054351817,1.51964434,58632.0,58631.0,0.0011042]
[1724054352143,1.87533943,58632.0,58631.0,0.0011042]
[1724054352938,2.17035963,58632.0,58631.0,0.0011042]
[1724054353136,2.21644619,58632.0,58631.0,0.0011042]
[1724054353510,1.87533619,58632.0,58631.0,0.0011042]
[1724054356346,1.77533619,58632.0,58631.0,0.0011042]
[1724054356862,1.77533619,58632.0,58631.0,0.0772042]
[1724054357272,1.77531488,58632.0,58631.0,0.0772042]
[1724054357470,1.74580486,58632.0,58631.0,0.0772042]
[1724054357670,1.77531564,58632.0,58631.0,0.1395042]
[1724054359367,0.99976856,58632.0,58631.0,0.1395042]
[1724054359576,0.94034606,58632.0,58631.0,0.1395042]
[1724054360196,1.23539005,58632.0,58631.0,0.1395042]
[1724054360397,1.28146226,58632.0,58631.0,0.1395042]
[1724054360635,0.76979726,58632.0,58631.0,0.1395042]
[1724054361048,0.94035226,58632.0,58631.0,0.1395042]
[1724054361250,0.94034691,58632.0,58631.0,0.1395042]
[1724054361859,0.89428005,58632.0,58631.0,0.1395042]
[1724054362065,0.94034977,58632.0,58631.0,0.1395042]
[1724054362477,0.9403482,58632.0,58631.0,0.1395042]
[1724054363527,0.7697932,58632.0,58631.0,0.1395042]
[1724054364059,0.76979363,58632.0,58631.0,0.1395042]
[1724054365187,0.94034863,58632.0,58631.0,0.1395042]
[1724054365707,1.04211325,58632.0,58631.0,0.1395042]
[1724054367449,0.87155825,58632.0,58631.0,0.1395042]
[1724054367654,0.56684812,58632.0,58631.0,0.6511782]
[1724054367884,0.77373993,58632.0,58631.0,0.6511782]
[1724054368500,0.56684812,58632.0,58631.0,0.6511782]
[1724054368907,0.64315238,58632.0,58631.0,0.6511782]
[1724054369117,0.87589888,58632.0,58631.0,0.6511782]
[1724054369320,0.64315389,58632.0,58631.0,0.6511782]
[1724054369521,0.87515517,58632.0,58631.0,0.6511782]
[1724054370746,0.87515833,58632.0,58631.0,0.6511782]
[1724054372708,0.87515833,58632.0,58631.0,0.3100622]
[1724054375070,0.82908659,58632.0,58631.0,0.3100622]
[1724054375214,0.87516037,58632.0,58631.0,0.3100622]
[1724054375789,1.72793537,58632.0,58631.0,0.0011042]
[1724054375998,1.83097653,58632.0,58631.0,0.0011042]
[1724054376203,1.94777653,58632.0,58631.0,0.0011042]
[1724054376403,1.82057075,58632.0,58631.0,0.0011042]
[1724054379302,1.88000196,58632.0,58631.0,0.0011042]
[1724054381535,1.76320196,58632.0,58631.0,0.0011042]
[1724054381684,2.10431196,58632.0,58631.0,0.0011042]
[1724054381884,2.22111196,58632.0,58631.0,0.0011042]
[1724054382065,2.16168075,58632.0,58631.0,0.0011042]
[1724054382676,2.22518075,58632.0,58631.0,0.0011042]
[1724054383418,2.17910697,58632.0,58631.0,0.0011042]
[1724054383618,2.28463031,58632.0,58631.0,0.0011042]
[1724054383823,2.22518948,58632.0,58631.0,0.0011042]
[1724054384365,2.28463031,58632.0,58631.0,0.0011042]
[1724054384663,2.22518948,58632.0,58631.0,0.0011042]
[1724054384874,2.28463044,58632.0,58631.0,0.0011042]
[1724054385077,2.28128758,58632.0,58631.0,0.0011042]
[1724054385284,2.22184662,58632.0,58631.0,0.0011042]
[1724054387116,1.96394662,58632.0,58631.0,0.0011042]
[1724054387308,1.96331624,58632.0,58631.0,0.0011042]
[1724054387512,1.9633259,58632.0,58631.0,0.0011042]
[1724054387713,2.02278065,58632.0,58631.0,0.0011042]
[1724054388248,1.9633259,58632.0,58631.0,0.0011042]
[1724054389584,2.02278125,58632.0,58631.0,0.0011042]
[1724054390296,2.1013259,58632.0,58631.0,0.0011042]
[1724054392368,1.68167025,58632.0,58631.0,0.1474042]
[1724054392549,1.68167025,58632.0,58631.0,0.0011042]
[1724054393819,1.68167025,58632.0,58631.0,0.0809042]
[1724054394338,1.34056025,58632.0,58631.0,0.1467042]
[1724054395995,1.34056104,58632.0,58631.0,0.1467042]
[1724054396203,2.10088104,58632.0,58631.0,0.0011042]
[1724054396410,2.16278104,58632.0,58631.0,0.0011042]
[1724054396616,2.10332617,58632.0,58631.0,0.0011042]
[1724054397593,2.25604724,58632.0,58631.0,0.0011042]
[1724054399006,2.25604724,58632.0,58630.0,0.009042]
[1724054399007,1.678222,58631.0,58630.0,0.00290737]
[1724054399212,2.35431147,58631.0,58630.0,0.00290737]
[1724054399629,2.01319547,58631.0,58630.0,0.00290737]
[1724054399845,1.69526266,58631.0,58630.0,0.00290737]
[1724054400079,1.54256763,58631.0,58630.0,0.00290737]
[1724054400285,1.51715744,58631.0,58630.0,0.00290737]
[1724054400490,1.53015744,58631.0,58630.0,0.00290737]
[1724054400690,1.18904144,58631.0,58630.0,0.00290737]
[1724054400915,0.97279,58631.0,58630.0,0.00290737]
[1724054401047,1.29489279,58631.0,58630.0,0.00290737]
[1724054401471,1.41169279,58631.0,58630.0,0.00290737]
[1724054401668,1.39869279,58631.0,58630.0,0.00290737]
[1724054401906,1.33923663,58631.0,58630.0,0.00290737]
[1724054402074,1.34823663,58631.0,58630.0,0.00290737]
[1724054402919,1.40769395,58631.0,58630.0,0.00290737]
[1724054403111,1.34823663,58631.0,58630.0,0.00290737]
[1724054403321,1.34792183,58631.0,58630.0,0.00290737]
[1724054403729,1.69103467,58631.0,58630.0,0.00290737]
[1724054403928,1.69042457,58631.0,58630.0,0.00290737]
[1724054404228,1.77844482,58631.0,58630.0,0.00290737]
[1724054404397,1.83023062,58631.0,58630.0,0.00290737]
[1724054405216,2.33918816,58631.0,58630.0,0.00290737]
[1724054405416,2.68030416,58631.0,58630.0,0.00290737]
[1724054407071,2.8397824,58631.0,58630.0,0.00290737]
[1724054407229,2.08258816,58631.0,58630.0,0.00290737]
[1724054407700,1.89156331,58631.0,58630.0,0.00290737]
[1724054407918,1.73889847,58631.0,58630.0,0.00290737]
[1724054408151,1.89156331,58631.0,58630.0,0.00290737]
[1724054408349,1.73889847,58631.0,58630.0,0.00290737]
[1724054408548,1.89156331,58631.0,58630.0,0.00290737]
[1724054408754,1.73889847,58631.0,58630.0,0.00290737]
[1724054408979,2.23383842,58631.0,58630.0,0.00290737]
[1724054409149,1.89272242,58631.0,58630.0,0.00290737]
[1724054409667,1.9440816,58631.0,58630.0,0.00290737]
[1724054409822,2.2851976,58631.0,58630.0,0.00290737]
[1724054410226,2.23423024,58631.0,58630.0,0.00290737]
[1724054410616,2.43361914,58631.0,58630.0,0.00290737]
[1724054411730,2.09250314,58631.0,58630.0,0.00290737]
[1724054411941,2.09250314,58631.0,58630.0,0.06880737]
[1724054411942,1.79224532,58631.0,58630.0,0.06880737]
[1724054412233,1.72389487,58631.0,58630.0,0.06880737]
[1724054412362,1.69436282,58631.0,58630.0,0.06880737]
[1724054412563,1.74046077,58631.0,58630.0,0.06880737]
[1724054413427,1.74085816,58631.0,58630.0,0.06880737]
[1724054414204,1.05862616,58631.0,58630.0,0.06880737]
[1724054414409,1.29974216,58631.0,58630.0,0.06880737]
[1724054415006,0.95862616,58631.0,58630.0,0.06880737]
[1724054415374,1.29974216,58631.0,58630.0,0.06880737]
[1724054416379,1.29974018,58631.0,58630.0,0.06880737]
[1724054417464,1.30885662,58631.0,58630.0,0.06880737]
[1724054417977,0.96774062,58631.0,58630.0,0.14650737]
[1724054418228,0.7979276,58631.0,58630.0,0.65819037]
[1724054418678,0.89972305,58631.0,58630.0,0.65819037]
[1724054418881,0.7889276,58631.0,58630.0,0.65819037]
[1724054419101,0.56499195,58631.0,58630.0,0.65819037]
[1724054419269,0.89717199,58631.0,58630.0,0.65819037]
[1724054419470,0.89717199,58631.0,58630.0,0.31706837]
[1724054419670,1.05872999,58631.0,58630.0,0.08060737]
[1724054419872,1.09017545,58631.0,58630.0,0.08060737]
[1724054420428,1.43129145,58631.0,58630.0,0.00290737]
[1724054420751,1.38519548,58631.0,58630.0,0.00290737]
[1724054420959,1.83746073,58631.0,58630.0,0.00290737]
[1724054421345,1.84146073,58631.0,58630.0,0.00290737]
[1724054422264,1.63968221,58631.0,58630.0,0.00290737]
[1724054422657,1.71691993,58631.0,58630.0,0.00290737]
[1724054422996,1.58968221,58631.0,58630.0,0.00290737]
[1724054424048,1.54359205,58631.0,58630.0,0.00290737]
[1724054424240,1.58968136,58631.0,58630.0,0.00290737]
[1724054424840,1.58968136,58631.0,58630.0,0.06870737]
[1724054425159,1.71692643,58631.0,58630.0,0.14380737]
[1724054425328,1.37581043,58631.0,58630.0,0.14380737]
[1724054425520,1.40535308,58631.0,58630.0,0.14380737]
[1724054425924,1.40535375,58631.0,58630.0,0.14380737]
[1724054427656,1.37582427,58631.0,58630.0,0.14380737]
[1724054427851,1.4053538,58631.0,58630.0,0.14380737]
[1724054428127,1.4053538,58631.0,58630.0,0.07800737]
[1724054428541,1.2781002,58631.0,58630.0,0.07800737]
[1724054428745,1.2781002,58631.0,58630.0,0.00290737]
[1724054428956,1.6192162,58631.0,58630.0,0.00290737]
[1724054430012,1.61921398,58631.0,58630.0,0.00290737]
[1724054431540,1.61867922,58631.0,58630.0,0.00290737]
[1724054432141,1.27756322,58631.0,58630.0,0.00290737]
[1724054432496,1.40482617,58631.0,58630.0,0.14690737]
[1724054432697,1.27756756,58631.0,58630.0,0.14690737]
[1724054433099,0.76589356,58631.0,58630.0,0.31746837]
[1724054433303,0.76589356,58631.0,58630.0,0.99971237]
[1724054433527,0.52499136,58631.0,58630.0,0.99971237]
[1724054433732,0.52499136,58631.0,58630.0,1.45763437]
[1724054433733,0.57590899,58631.0,58630.0,1.45763437]
[1724054433909,0.52499136,58631.0,58630.0,1.45763437]
[1724054434073,0.52499136,58631.0,58630.0,1.11651237]
[1724054434286,0.52099136,58631.0,58630.0,1.11651237]
[1724054434763,0.51499136,58631.0,58630.0,1.11651237]
[1724054434942,0.48546248,58631.0,58630.0,1.11651237]
[1724054437507,0.48546248,58631.0,58630.0,0.99971237]
[1724054437931,0.48546248,58631.0,58630.0,0.65859037]
[1724054438526,0.48546248,58631.0,58630.0,0.99971237]
[1724054439532,0.48546549,58631.0,58630.0,0.99971237]
[1724054440555,0.48546549,58631.0,58630.0,0.31746837]
[1724054440957,0.48546549,58631.0,58630.0,0.65859037]
[1724054442146,0.48546549,58631.0,58630.0,0.31746837]
[1724054442351,0.48546549,58631.0,58630.0,0.00290737]
[1724054442758,0.48546549,58631.0,58630.0,0.17346837]
[1724054442979,0.46889598,58631.0,58630.0,0.51459037]
[1724054443161,0.48546704,58631.0,58630.0,0.51459037]
[1724054447463,0.48546704,58631.0,58630.0,0.17346837]
[1724054447688,0.5150072,58631.0,58630.0,0.17346837]
[1724054447893,0.48546704,58631.0,58630.0,0.51459037]
[1724054449086,0.48546704,58631.0,58630.0,0.85571237]
[1724054449305,0.48546704,58631.0,58630.0,0.51459037]
[1724054451164,0.48546812,58631.0,58630.0,0.51459037]
[1724054451783,0.80092612,58631.0,58630.0,0.00290737]
[1724054452130,0.65990371,58631.0,58630.0,0.00290737]
[1724054452335,1.56355894,58631.0,58630.0,0.00290737]
[1724054452746,1.51745121,58631.0,58630.0,0.00290737]
[1724054452949,1.58898737,58631.0,58630.0,0.00290737]
[1724054453788,1.18327729,58631.0,58630.0,0.00290737]
[1724054453999,1.02667352,58631.0,58630.0,0.00290737]
[1724054454758,1.36778952,58631.0,58630.0,0.00290737]
[1724054455161,1.44409329,58631.0,58630.0,0.00290737]
[1724054456138,1.36778952,58631.0,58630.0,0.00290737]
[1724054456354,1.02667352,58631.0,58630.0,0.00290737]
[1724054456557,1.07755113,58631.0,58630.0,0.00290737]
[1724054456804,1.02667352,58631.0,58630.0,0.00290737]
[1724054457590,0.56588182,58631.0,58630.0,0.65919037]
[1724054457825,0.48546467,58631.0,58630.0,1.34143437]
[1724054458030,0.46889598,58631.0,58630.0,1.34143437]
[1724054458857,0.48546476,58631.0,58630.0,1.34143437]
[1724054459062,0.48546477,58631.0,58630.0,1.34143437]
[1724054460469,0.48546477,58631.0,58630.0,0.93381237]
[1724054460709,0.48546477,58631.0,58630.0,0.00290737]
[1724054461831,0.46889598,58631.0,58630.0,0.00290737]
[1724054462081,0.48546378,58631.0,58630.0,0.00290737]
[1724054462780,0.51499709,58631.0,58630.0,0.00290737]
[1724054462987,0.70690968,58631.0,58630.0,0.00290737]
[1724054463192,0.51499553,58631.0,58630.0,0.00290737]
[1724054463602,0.56588343,58631.0,58630.0,0.00290737]
[1724054464230,0.73644143,58631.0,58630.0,0.00290737]
[1724054464435,0.73643157,58631.0,58630.0,0.00290737]
[1724054465200,0.68554367,58631.0,58630.0,0.00290737]
[1724054465405,0.51498567,58631.0,58630.0,0.00290737]
[1724054466025,0.51498567,58631.0,58630.0,0.65769037]
[1724054466177,0.46889598,58631.0,58630.0,0.65769037]
[1724054466381,0.48545698,58631.0,58630.0,0.99881237]
[1724054466955,0.48545698,58631.0,58630.0,0.51459037]
[1724054467164,0.48545698,58631.0,58630.0,0.65419037]
[1724054467294,0.48545698,58631.0,58630.0,0.99531237]
[1724054467897,0.48545698,58631.0,58630.0,1.33643437]
[1724054468168,0.48545698,58631.0,58630.0,0.99531237]
[1724054469229,0.48545698,58631.0,58630.0,1.33643437]
[1724054470072,0.46889598,58631.0,58630.0,1.33643437]
[1724054472153,0.46889598,58631.0,58630.0,0.99531237]
[1724054472556,0.48545816,58631.0,58630.0,0.99531237]
[1724054473977,0.46889598,58631.0,58630.0,0.99531237]
[1724054474172,0.48545827,58631.0,58630.0,0.99531237]
[1724054474596,0.46889598,58631.0,58630.0,0.99531237]
[1724054475174,0.46889598,58631.0,58630.0,1.33643437]
[1724054476577,0.46889598,58631.0,58630.0,0.99531237]
[1724054476809,0.48545844,58631.0,58630.0,0.99531237]
[1724054477013,0.48545846,58631.0,58630.0,1.33643437]
[1724054477429,0.46889598,58631.0,58630.0,1.33643437]
[1724054478009,0.46889598,58631.0,58630.0,0.99531237]
[1724054478329,0.46889598,58631.0,58630.0,1.33643437]
[1724054478527,0.46889598,58631.0,58630.0,0.99531237]
[1724054479191,0.46889598,58631.0,58630.0,1.33643437]
[1724054479810,0.46889598,58631.0,58630.0,0.99531237]
[1724054480227,0.46889598,58631.0,58630.0,1.33643437]
[1724054481387,0.45977954,58631.0,58630.0,1.33643437]
[1724054482589,0.000822,58631.0,58630.0,1.33643437]
[1724054488050,0.000822,58631.0,58630.0,1.50798891]
[1724054488258,0.000822,58631.0,58630.0,1.97711091]
[1724054488678,0.000822,58631.0,58630.0,3.52828567]
[1724054488880,0.000822,58631.0,58630.0,3.86940767]
[1724054489788,0.001822,58631.0,58630.0,3.82023291]
[1724054490009,0.002822,58631.0,58630.0,3.82123291]
[1724054490213,0.002822,58631.0,58630.0,3.83145374]
[1724054490641,0.002822,58631.0,58630.0,4.12325374]
[1724054494759,0.00262296,58631.0,58630.0,4.12325374]
[1724054498789,0.00219245,58631.0,58630.0,4.12325374]
[1724054501693,0.00219245,58631.0,58630.0,3.78213174]
[1724054501925,0.00219245,58631.0,58630.0,3.46333174]
[1724054502899,0.00219245,58631.0,58630.0,3.45311091]
[1724054503890,0.00219245,58631.0,58630.0,3.45511091]
[1724054504150,0.00219245,58631.0,58630.0,3.45711091]
[1724054506339,0.00219245,58631.0,58630.0,3.45311091]
[1724054509310,0.00219245,58631.0,58630.0,3.45511091]
[1724054510541,0.00219245,58631.0,58630.0,3.45311091]
[1724054512736,0.00219245,58631.0,58630.0,3.56991091]
[1724054514025,0.00219245,58631.0,58630.0,0.00590737]
[1724054514026,0.13959245,58631.0,58630.0,0.00590737]
[1724054514294,0.32672217,58631.0,58630.0,0.00590737]
[1724054514563,0.1642742,58631.0,58630.0,0.00590737]
[1724054514838,0.3338322,58631.0,58630.0,0.00390737]
[1724054515056,0.33383224,58631.0,58630.0,0.01390737]
[1724054515287,0.45063224,58631.0,58630.0,0.01490737]
[1724054515507,1.13286424,58631.0,58630.0,0.01490737]
[1724054515725,1.16140356,58631.0,58630.0,0.01290737]
[1724054515934,1.16140356,58631.0,58630.0,0.01390737]
[1724054515935,1.16240356,58631.0,58630.0,0.01390737]
[1724054516352,1.13286424,58631.0,58630.0,0.01390737]
[1724054516560,1.13286424,58631.0,58630.0,0.01290737]
[1724054516561,1.01506424,58631.0,58630.0,0.01290737]
[1724054516772,0.67594824,58631.0,58630.0,0.01290737]
[1724054517191,0.67594824,58631.0,58630.0,0.01490737]
[1724054517624,0.67594824,58631.0,58630.0,0.01290737]
[1724054517837,0.67694824,58631.0,58630.0,0.01290737]
[1724054519127,1.01806424,58631.0,58630.0,0.01290737]
[1724054519337,1.09839999,58631.0,58630.0,0.01290737]
[1724054519762,1.04760071,58631.0,58630.0,0.01290737]
[1724054520187,1.09839999,58631.0,58630.0,0.01290737]
[1724054521025,1.04760071,58631.0,58630.0,0.01290737]
[1724054521247,1.01806424,58631.0,58630.0,0.01290737]
[1724054522580,1.06886352,58631.0,58630.0,0.01290737]
[1724054522785,1.09840573,58631.0,58630.0,0.01290737]
[1724054522996,1.38872245,58631.0,58630.0,0.01290737]
[1724054523214,1.43947365,58631.0,58630.0,0.01290737]
[1724054523817,1.46492137,58631.0,58630.0,0.01290737]
[1724054524229,1.38872245,58631.0,58630.0,0.01290737]
[1724054524660,1.43946086,58631.0,58630.0,0.01290737]
[1724054524898,1.43946087,58631.0,58630.0,0.01290737]
[1724054525522,1.3933469,58631.0,58630.0,0.01290737]
[1724054525724,1.43135255,58631.0,58630.0,0.01290737]
[1724054526555,1.38061413,58631.0,58630.0,0.01290737]
[1724054527709,1.38061413,58631.0,58618.0,0.170595]
[1724054527710,0.1439,58620.0,58618.0,0.170595]
[1724054527920,0.1439,58620.0,58616.0,0.341203]
[1724054528128,0.31449,58620.0,58617.0,0.170597]
[1724054528340,0.1439,58620.0,58618.0,0.170595]
[1724054528960,0.1449,58620.0,58618.0,0.001]
[1724054529392,1.166858,58619.0,58618.0,0.001]
[1724054529584,1.337451,58619.0,58618.0,0.001]
[1724054529798,1.35402259,58619.0,58618.0,0.001]
[1724054530034,1.35402377,58619.0,58618.0,0.003]
[1724054530437,1.35402377,58619.0,58618.0,0.002]
[1724054530625,0.314613,58612.0,58606.0,0.3527557]
[1724054530825,0.314613,58612.0,58609.0,0.17062]
[1724054531288,0.144,58612.0,58610.0,0.170619]
[1724054531671,0.314613,58612.0,58609.0,0.170621]
[1724054531896,0.144,58612.0,58610.0,0.170619]
[1724054532111,0.314613,58612.0,58608.0,0.341249]
[1724054532320,0.315613,58612.0,58611.0,0.0012]
[1724054533107,0.316613,58612.0,58611.0,0.0012]
[1724054533927,0.146,58612.0,58611.0,0.0012]
[1724054535924,0.146,58612.0,58611.0,0.171816]
[1724054536330,0.146,58612.0,58611.0,0.0012]
[1724054537706,0.316613,58612.0,58611.0,0.0012]
[1724054537928,0.146,58612.0,58611.0,0.0012]
[1724054538340,0.146,58612.0,58611.0,0.00116]
[1724054538549,0.146,58612.0,58611.0,0.171776]
[1724054538755,0.146,58612.0,58611.0,0.00116]
[1724054539501,0.999067,58612.0,58611.0,0.00116]
[1724054539701,1.3568699,58612.0,58611.0,0.00116]
[1724054540176,1.38641773,58612.0,58611.0,0.00116]
[1724054540356,1.38541773,58612.0,58611.0,0.00116]
[1724054540790,1.38541773,58612.0,58611.0,0.00216]
[1724054541197,1.38541773,58612.0,58611.0,0.00116]
[1724054541620,1.36884162,58612.0,58611.0,0.00116]
[1724054541840,1.55697228,58612.0,58611.0,0.0020642]
[1724054542048,1.55597228,58612.0,58611.0,0.0010642]
[1724054542458,1.56297228,58612.0,58611.0,0.0010642]
[1724054542668,1.39741774,58612.0,58611.0,0.0010642]
[1724054542878,0.20312374,58612.0,58611.0,0.0010642]
[1724054543088,0.20312374,58612.0,58611.0,0.1716802]
[1724054543089,0.13462374,58612.0,58611.0,0.1716802]
[1724054543300,0.04357612,58612.0,58611.0,0.9143442]
[1724054543508,0.027,58612.0,58611.0,2.7555762]
[1724054543928,0.029554,58621.0,58620.0,0.51177]
[1724054544138,0.01658007,58621.0,58620.0,0.51177]
[1724054544578,0.1383,58622.0,58621.0,0.170587]
[1724054544775,0.1548801,58622.0,58621.0,0.170587]